bitfinex/quotes_ETHUSD_20240618
["timestamp","ask_amount","ask_price","bid_price","bid_amount"]
[1718724728284,1.50913907,3423.6,3422.1,9.5668]
[1718724728601,0.55,3423.5,3422.1,9.5668]
[1718724729185,2.05913907,3423.6,3422.1,9.5668]
[1718724729494,2.26505298,3423.6,3422.2,1.541138]
[1718724729700,0.55,3423.6,3422.2,4.463208]
[1718724730191,0.55,3423.6,3422.2,1.541138]
[1718724730726,2.05913907,3423.6,3422.2,1.541138]
[1718724730927,0.20591391,3423.5,3422.1,9.5668]
[1718724731102,0.20591391,3423.5,3422.1,6.7818]
[1718724731103,1.52733907,3423.3,3422.1,6.7818]
[1718724731631,0.55,3423.2,3422.1,6.7818]
[1718724731780,0.55,3423.2,3422.2,0.67818]
[1718724732132,1.50913907,3423.3,3422.3,0.05843219]
[1718724732333,3.20591391,3423.5,3422.3,0.05843219]
[1718724732334,3.0,3423.5,3422.3,0.05843219]
[1718724732538,4.50913907,3423.6,3422.3,0.05843219]
[1718724732539,1.50913907,3423.7,3422.4,3.67369122]
[1718724732688,1.50913907,3423.8,3422.6,2.92174]
[1718724732889,3.0,3424.1,3422.5,2.8434234]
[1718724732890,1.50913907,3424.1,3422.8,7.2772]
[1718724733204,0.0182,3424.4,3422.9,0.8863672]
[1718724733205,0.30547635,3424.0,3422.9,0.8863672]
[1718724733385,1.50913907,3424.3,3422.9,0.8863672]
[1718724733723,1.50913907,3424.3,3423.0,1.20290427]
[1718724733930,0.0182,3424.4,3423.1,0.05841324]
[1718724733931,3.63351961,3424.2,3423.1,0.05841324]
[1718724734136,1.50913907,3424.2,3423.1,0.05841324]
[1718724734739,2.11638466,3424.6,3423.2,0.05841674]
[1718724734740,1.50913907,3424.3,3423.2,0.05841674]
[1718724734952,2.13099471,3424.9,3423.3,2.92112]
[1718724734953,1.50913907,3424.5,3423.3,2.92112]
[1718724735248,1.50913907,3424.8,3423.4,0.05840803]
[1718724735421,2.12411098,3424.7,3423.5,0.64018382]
[1718724735745,1.50913907,3424.7,3423.6,0.05840461]
[1718724735954,1.68016465,3424.7,3423.6,7.34440461]
[1718724736363,0.17102558,3424.7,3423.6,7.34440461]
[1718724736509,3.0,3424.6,3423.2,0.50106016]
[1718724736708,3.0,3424.5,3423.2,0.50106016]
[1718724737156,0.55,3424.4,3423.2,0.50106016]
[1718724737749,2.05913907,3424.4,3423.2,0.50106016]
[1718724738251,3.63334581,3424.3,3423.2,0.50106016]
[1718724738431,0.55,3424.2,3423.2,0.50106016]
[1718724738754,0.55,3424.2,3423.3,1.18098644]
[1718724739323,0.55,3424.2,3423.1,7.3209]
[1718724739324,2.05913907,3424.2,3423.1,7.3209]
[1718724739522,0.55,3424.1,3423.1,7.3209]
[1718724739960,0.55,3424.1,3423.2,0.05687852]
[1718724740244,3.6333451,3424.0,3422.5,6.8639]
[1718724740467,3.6333451,3424.0,3422.5,7.734586]
[1718724740468,7.1833451,3423.9,3422.5,7.734586]
[1718724740621,3.6333451,3423.8,3422.5,7.734586]
[1718724740814,2.67420603,3423.7,3422.6,1.6441576]
[1718724741159,2.12420603,3423.6,3422.6,1.6441576]
[1718724741854,3.6333451,3423.6,3422.6,1.6441576]
[1718724742017,2.12420603,3423.5,3422.6,1.6441576]
[1718724742718,3.6333451,3423.5,3422.6,1.6441576]
[1718724742918,2.12420603,3423.4,3422.7,1.51637436]
[1718724743453,3.6333451,3423.4,3422.7,1.51637436]
[1718724744042,2.12420603,3423.3,3422.8,0.04115581]
[1718724744241,1.50913907,3423.5,3422.8,0.04115581]
[1718724744242,2.12456909,3423.2,3422.8,0.88329883]
[1718724744462,1.50913907,3423.5,3422.8,0.88329883]
[1718724744756,2.12454017,3423.4,3422.8,0.88329883]
[1718724744956,2.12454017,3423.4,3422.9,0.59055228]
[1718724745159,4.50913907,3423.9,3422.9,2.97989896]
[1718724745334,3.63345678,3423.8,3422.9,2.97989896]
[1718724745540,2.12431771,3423.7,3423.0,0.82600763]
[1718724746230,1.50913907,3423.6,3422.8,0.84214302]
[1718724746432,2.12431771,3423.5,3422.8,0.84214302]
[1718724747161,2.12431771,3423.5,3422.9,0.05171742]
[1718724747462,1.50913907,3423.9,3423.4,7.1937]
[1718724747629,2.11279471,3424.5,3423.5,3.103483]
[1718724747630,2.12408983,3423.8,3423.5,3.103483]
[1718724747828,1.50913907,3424.1,3423.6,0.04652403]
[1718724748054,2.12407992,3424.0,3423.7,1.0343707]
[1718724748553,1.50913907,3424.2,3423.8,2.9678146]
[1718724748761,1.50913907,3424.2,3424.1,2.92047]
[1718724748925,1.50913907,3424.9,3424.3,7.335]
[1718724749126,1.50913907,3425.0,3424.5,2.92012]
[1718724749435,1.50913907,3425.5,3424.8,2.092]
[1718724749739,3.63234343,3425.4,3424.9,0.02696504]
[1718724749950,2.12320436,3425.3,3424.9,0.37283704]
[1718724750271,2.13099471,3426.2,3424.9,0.37283704]
[1718724750272,1.50913907,3425.7,3424.9,0.37283704]
[1718724750480,1.50913907,3425.7,3424.8,2.092]
[1718724750481,2.12321761,3425.6,3424.8,2.092]
[1718724750642,3.63235668,3425.6,3424.8,2.092]
[1718724751042,2.12321761,3425.5,3424.8,2.092]
[1718724751464,2.12321761,3425.4,3424.6,1.025512]
[1718724751641,1.50913907,3425.7,3424.6,1.025512]
[1718724751642,1.50913907,3425.7,3424.7,0.3945652]
[1718724751857,1.50913907,3425.7,3424.8,0.05838514]
[1718724751858,2.12326654,3425.6,3424.8,0.05838514]
[1718724752272,2.12326654,3425.6,3424.6,1.025512]
[1718724752472,2.12326654,3425.5,3424.6,1.025512]
[1718724753249,1.50913907,3425.7,3424.1,0.50596246]
[1718724753250,3.6325181,3425.4,3424.1,0.50596246]
[1718724753470,3.6325181,3425.4,3423.8,7.3254]
[1718724753471,1.50913907,3425.2,3423.8,7.3254]
[1718724753766,1.50913907,3425.0,3423.8,7.3254]
[1718724754091,4.50913907,3425.2,3423.9,2.92063]
[1718724754264,4.50913907,3425.2,3424.0,3.945143]
[1718724754469,5.11279471,3425.9,3424.0,3.945143]
[1718724754470,4.50913907,3425.4,3424.0,3.945143]
[1718724754670,3.0,3425.9,3424.0,3.945143]
[1718724754671,6.632674,3425.3,3424.0,1.024603]
[1718724754987,2.12353493,3425.2,3424.1,1.1270633]
[1718724755197,5.12353493,3425.2,3424.1,1.1270633]
[1718724755418,4.182674,3425.1,3424.2,0.0584036]
[1718724755569,3.0,3425.2,3423.9,0.05839795]
[1718724755570,1.50913907,3425.2,3423.9,0.05839795]
[1718724755885,2.36096689,3425.6,3423.9,0.05839795]
[1718724755886,3.63278859,3425.1,3423.9,1.024609]
[1718724756187,1.50913907,3425.3,3423.9,1.024609]
[1718724756490,4.18281312,3425.2,3423.9,1.024609]
[1718724756805,3.0,3425.4,3424.2,2.92038]
[1718724756806,3.0,3425.1,3424.2,2.92038]
[1718724756956,3.0,3425.4,3424.3,0.58993279]
[1718724757346,1.50913907,3425.6,3424.2,2.92036]
[1718724757591,0.55,3425.5,3424.5,7.4897]
[1718724757814,2.05913907,3425.8,3424.5,7.4897]
[1718724757973,2.1233033,3425.7,3424.6,1.1272782]
[1718724758174,3.0,3425.7,3424.6,4.0473182]
[1718724758373,3.0,3425.9,3424.7,0.05837953]
[1718724758576,1.50913907,3426.0,3424.8,1.15953977]
[1718724758942,1.50913907,3426.0,3424.9,0.05837612]
[1718724759207,1.50913907,3426.2,3424.9,0.05837612]
[1718724759493,3.0,3426.3,3424.9,0.05837612]
[1718724759494,4.50913907,3426.3,3425.0,0.41378759]
[1718724759797,2.12302667,3426.2,3425.1,0.05837271]
[1718724760088,0.55,3426.1,3425.1,0.05837271]
[1718724760456,0.55,3426.2,3425.1,0.05837271]
[1718724760658,3.0,3426.4,3424.8,1.15953977]
[1718724760659,4.50913907,3426.4,3424.8,1.15953977]
[1718724760855,3.63220086,3426.3,3424.8,1.15953977]
[1718724761106,5.12306179,3426.2,3424.8,1.15953977]
[1718724761291,3.0,3426.2,3424.9,0.40794898]
[1718724761484,1.50913907,3426.3,3424.9,0.40794898]
[1718724761788,4.50957416,3426.4,3425.1,7.4256]
[1718724761959,2.12308811,3426.3,3425.2,0.05837984]
[1718724762155,2.12308811,3426.3,3425.1,7.4256]
[1718724762362,0.55,3426.2,3425.1,7.4256]
[1718724762701,1.50957416,3426.7,3425.2,1.09291784]
[1718724762862,2.12289815,3426.6,3425.2,1.09291784]
[1718724763062,0.30513382,3427.0,3425.5,2.788]
[1718724763273,0.30513382,3427.0,3425.6,0.05837164]
[1718724763583,1.50957416,3427.3,3425.7,6.8159]
[1718724763914,2.12252305,3427.2,3425.7,6.8159]
[1718724764383,1.50957416,3427.4,3425.8,0.05832398]
[1718724764714,4.81477478,3427.5,3425.9,3.96664242]
[1718724764897,3.0,3427.4,3425.9,1.04771242]
[1718724765100,4.81477478,3427.5,3425.9,1.04771242]
[1718724765622,4.81477478,3427.5,3426.0,0.05836739]
[1718724765623,1.50957416,3427.4,3426.0,0.05836739]
[1718724765913,4.81477478,3427.5,3426.0,0.05836739]
[1718724766077,3.0,3427.4,3426.0,0.05836739]
[1718724766276,0.55,3427.3,3426.0,0.05836739]
[1718724766495,0.55,3427.4,3425.7,6.8159]
[1718724766697,0.55,3427.4,3425.8,0.0342967]
[1718724767129,0.55,3427.4,3425.9,2.91892]
[1718724767410,0.55,3427.4,3426.0,2.97719139]
[1718724767612,0.55,3427.4,3426.2,7.1814]
[1718724767815,0.55,3427.4,3426.3,0.05835667]
[1718724767989,0.30493381,3427.5,3426.3,0.05835667]
[1718724768381,3.0,3427.8,3426.3,2.97692667]
[1718724769326,3.0,3427.8,3426.3,0.05835667]
[1718724769494,3.0,3427.8,3426.4,1.36667968]
[1718724769684,3.0,3427.8,3426.5,0.05835461]
[1718724770221,0.55,3427.7,3426.5,0.05835461]
[1718724771081,0.2925,3428.7,3426.5,0.05835461]
[1718724771082,3.0182,3428.5,3426.5,0.05835461]
[1718724771283,3.55,3428.4,3426.6,0.43435043]
[1718724771515,0.8547921,3428.4,3426.7,0.05835064]
[1718724771815,3.0,3428.3,3426.8,6.88994893]
[1718724772021,0.55,3428.2,3426.8,6.88994893]
[1718724772796,0.55,3428.2,3426.8,6.8316]
[1718724773403,3.55,3428.2,3426.3,7.0609]
[1718724773617,3.0,3427.9,3426.3,7.0609]
[1718724773800,3.55,3427.8,3426.3,7.0609]
[1718724775139,3.0,3427.8,3426.3,7.0609]
[1718724775294,3.0,3428.1,3426.3,7.0609]
[1718724775495,3.0,3428.1,3426.4,0.997957]
[1718724776648,0.55,3428.0,3426.5,6.8308]
[1718724776795,0.3047921,3428.4,3426.5,9.6188]
[1718724776999,3.0,3428.6,3426.6,0.03211141]
[1718724777294,3.0,3428.6,3426.9,6.8308]
[1718724777527,0.30487997,3428.5,3427.0,0.74135186]
[1718724777725,0.30487997,3428.5,3427.0,0.68308]
[1718724778438,3.30487997,3428.5,3427.0,0.68308]
[1718724778595,3.30487997,3428.5,3427.1,0.05834367]
[1718724778796,3.30487997,3428.5,3427.0,0.68308]
[1718724779020,3.30487997,3428.5,3427.1,0.751388]
[1718724779335,0.55,3428.4,3427.1,0.751388]
[1718724781334,0.55,3428.4,3426.9,6.8308]
[1718724781335,3.0,3428.2,3426.9,6.8308]
[1718724781500,0.55,3428.1,3426.9,6.8308]
[1718724781829,0.55,3428.1,3427.0,0.01579565]
[1718724781994,0.55,3428.1,3426.9,6.8308]
[1718724782196,0.55,3428.1,3422.9,1.46444301]
[1718724782197,3.0,3427.8,3426.5,7.4615]
[1718724782735,0.55,3427.7,3426.5,7.4615]
[1718724783545,3.0,3427.3,3425.5,7.3753]
[1718724783774,3.0182,3427.3,3425.6,0.73753]
[1718724783988,3.55,3427.2,3425.6,0.73753]
[1718724784450,3.55,3427.2,3425.5,7.3753]
[1718724784653,3.0,3426.9,3425.5,7.3753]
[1718724784985,0.55,3426.8,3425.5,7.3753]
[1718724785129,3.55,3426.8,3425.5,7.3753]
[1718724785329,3.0,3426.5,3424.6,7.3753]
[1718724785649,3.55,3426.4,3424.7,1.01633]
[1718724786174,3.0,3426.1,3424.7,1.01633]
[1718724786391,3.0,3426.1,3424.6,7.3753]
[1718724786680,3.55,3426.0,3424.6,7.3753]
[1718724787473,3.55,3426.0,3424.7,0.01903566]
[1718724787781,3.55,3426.0,3424.7,0.05839187]
[1718724788075,0.30507995,3425.9,3424.7,0.05839187]
[1718724788232,0.55,3425.8,3424.6,7.3753]
[1718724788436,0.55,3425.8,3423.7,5.9208]
[1718724788437,3.0,3425.6,3423.9,7.111]
[1718724788669,3.0,3425.5,3423.9,7.111]
[1718724788948,0.55,3425.4,3424.0,1.0111]
[1718724789360,0.55,3425.4,3423.9,7.111]
[1718724789361,3.0,3425.2,3423.9,7.111]
[1718724789569,3.55,3425.1,3423.9,7.111]
[1718724790678,3.0,3425.0,3423.9,7.111]
[1718724790979,3.0,3425.0,3423.3,2.788]
[1718724790980,0.55,3424.9,3423.4,7.3651]
[1718724791179,0.55,3424.9,3423.4,7.6439]
[1718724791469,3.0,3425.2,3423.4,7.6439]
[1718724791470,0.55,3425.1,3423.4,7.6439]
[1718724792167,0.404,3425.1,3423.4,7.6439]
[1718724793259,3.0,3424.8,3423.4,7.6439]
[1718724793461,2.97,3424.7,3423.4,7.6439]
[1718724795442,0.5682,3424.6,3422.9,7.034]
[1718724795649,3.0,3424.4,3422.9,7.034]
[1718724795857,3.0,3424.3,3422.9,7.034]
[1718724796060,3.0,3424.3,3423.0,0.7034]
[1718724796560,7.43,3424.6,3423.0,0.7034]
[1718724796561,3.0,3424.5,3423.0,0.7034]
[1718724797469,7.43,3424.6,3423.3,2.92115]
[1718724797676,7.43,3424.6,3423.2,2.788]
[1718724797677,7.43,3424.6,3423.4,1.2863638]
[1718724798376,7.43,3424.6,3423.4,1.262265]
[1718724798549,7.43,3424.6,3423.1,6.9135]
[1718724798766,6.0,3424.5,3423.1,6.9135]
[1718724799073,6.55,3424.5,3423.1,6.9135]
[1718724801098,6.55,3424.5,3422.5,7.0202]
[1718724801099,3.0,3424.1,3422.5,7.0202]
[1718724801243,3.0,3423.7,3422.5,7.0202]
[1718724801443,3.0,3423.6,3422.5,7.0202]
[1718724805574,3.0182,3424.0,3422.5,7.0202]
[1718724805781,3.0182,3424.0,3422.6,0.99422]
[1718724808802,3.0,3424.0,3422.6,0.99422]
[1718724808999,7.43,3424.2,3423.1,2.92132]
[1718724809211,0.30555396,3424.6,3423.1,7.0851]
[1718724809387,0.30555396,3424.6,3423.7,7.0851]
[1718724809592,7.43,3425.2,3423.7,10.0059]
[1718724809811,7.43,3425.2,3423.8,2.92069]
[1718724810029,3.0,3425.1,3423.8,2.92069]
[1718724810193,7.43,3425.2,3423.7,7.0851]
[1718724810389,7.43,3425.2,3423.8,0.98731]
[1718724810596,7.43,3425.2,3423.7,7.0851]
[1718724810923,7.43,3425.2,3423.2,0.70851]
[1718724810924,0.30547851,3425.2,3423.2,0.70851]
[1718724811223,3.0,3424.9,3423.2,7.2852]
[1718724811386,0.0182,3424.4,3422.5,7.2852]
[1718724811583,0.0182,3424.4,3422.6,7.084931]
[1718724811584,3.0182,3424.4,3422.6,7.084931]
[1718724811817,0.0182,3424.4,3422.6,1.163181]
[1718724812029,3.5682,3424.4,3422.7,0.8448381]
[1718724813609,3.5682,3424.4,3422.5,7.2852]
[1718724814931,3.0,3424.1,3422.5,7.2852]
[1718724815087,3.0,3424.0,3422.5,7.2852]
[1718724816122,3.0,3424.0,3422.0,6.8392]
[1718724816311,3.0,3423.6,3422.0,6.8392]
[1718724816513,3.0,3423.5,3422.0,6.8392]
[1718724818394,3.0,3423.5,3422.1,0.05843409]
[1718724818645,3.0,3423.5,3422.0,6.8392]
[1718724818858,0.0182,3423.4,3422.0,6.8392]
[1718724818997,0.0182,3423.4,3422.1,0.68392]
[1718724820911,0.0182,3423.4,3422.0,6.8392]
[1718724821244,0.5682,3423.4,3421.5,7.0583]
[1718724821604,3.0,3423.2,3421.5,7.0583]
[1718724821904,3.0,3423.2,3421.6,0.70583]
[1718724822123,3.0,3423.1,3421.6,0.70583]
[1718724822934,3.0,3423.1,3421.5,7.0583]
[1718724823524,0.55,3423.0,3421.0,9.7804]
[1718724823833,0.55,3423.0,3421.0,12.70351]
[1718724824538,0.55,3423.0,3421.1,5.92299]
[1718724824735,0.55,3423.0,3421.2,1.862659]
[1718724825337,2.12525602,3422.9,3421.2,4.785589]
[1718724825635,2.12525602,3422.8,3421.2,4.785589]
[1718724825840,3.0,3423.1,3421.2,1.862659]
[1718724826041,3.0,3423.1,3421.1,3.0]
[1718724826042,2.12524673,3423.0,3421.3,1.7701089]
[1718724826645,3.0,3422.6,3420.4,7.3847]
[1718724826805,3.0,3422.3,3420.4,7.3847]
[1718724827005,2.12566968,3422.2,3420.5,0.73847]
[1718724827206,5.12566968,3422.2,3420.5,0.73847]
[1718724827439,2.12566968,3422.1,3420.5,0.73847]
[1718724827671,2.12566968,3422.1,3420.6,0.812317]
[1718724828923,0.0182,3422.0,3420.6,0.812317]
[1718724829119,2.12566968,3421.9,3420.6,0.812317]
[1718724829344,2.12566968,3421.9,3419.9,8.71203]
[1718724829345,3.55,3421.8,3420.0,3.0]
[1718724829549,2.12566968,3421.7,3419.9,3.0]
[1718724829748,5.12566968,3421.7,3420.0,1.10051582]
[1718724829920,3.0,3421.7,3420.0,1.10051582]
[1718724830245,2.12601217,3421.6,3420.0,1.04205]
[1718724830452,2.12601217,3421.6,3420.1,1.146255]
[1718724831249,3.0,3421.7,3420.1,1.146255]
[1718724831426,2.12600965,3421.6,3420.1,1.146255]
[1718724831629,2.43171424,3421.6,3420.1,1.146255]
[1718724831840,0.30570459,3421.6,3420.1,1.146255]
[1718724832033,3.0,3421.7,3420.1,1.146255]
[1718724832350,2.98177005,3421.6,3420.1,1.146255]
[1718724832558,5.1260508,3421.5,3420.1,1.146255]
[1718724832845,0.30571925,3421.6,3420.1,1.146255]
[1718724832846,3.30571925,3421.6,3420.1,1.146255]
[1718724833056,0.30571925,3421.6,3420.2,0.4146255]
[1718724833240,0.30571925,3421.6,3420.3,7.2453]
[1718724833442,0.30571925,3421.6,3420.5,5.71154]
[1718724833660,7.43,3421.9,3420.6,7.2453]
[1718724833955,7.43,3421.9,3421.1,7.2453]
[1718724834255,7.43,3422.2,3421.2,0.04570965]
[1718724834461,7.43,3422.2,3421.3,0.05844595]
[1718724834618,7.43,3422.2,3421.4,1.0226686]
[1718724834817,7.43,3422.2,3421.5,0.05844591]
[1718724835022,7.43,3422.2,3421.5,2.98105591]
[1718724836355,7.43,3422.8,3421.5,0.05844591]
[1718724836555,3.0,3422.7,3421.6,0.40039645]
[1718724836730,3.0,3422.7,3421.7,0.05843848]
[1718724837557,3.0,3422.7,3421.4,1.0226686]
[1718724838554,2.12533005,3422.6,3421.1,7.2453]
[1718724839359,2.43107165,3422.6,3421.1,7.2453]
[1718724839664,2.12533005,3422.5,3421.1,7.2453]
[1718724840197,5.14353005,3422.5,3421.1,7.2453]
[1718724840335,2.12533005,3422.4,3421.1,7.2453]
[1718724840660,5.12533005,3422.4,3421.1,7.2453]
[1718724840835,3.0,3422.4,3421.1,7.2453]
[1718724841423,2.12550612,3422.3,3421.1,7.2453]
[1718724841624,3.0,3422.3,3421.1,7.2453]
[1718724841836,3.0,3422.4,3421.2,0.72453]
[1718724842422,3.0,3422.4,3421.2,3.64741]
[1718724842627,0.3057416,3422.6,3421.4,2.92275]
[1718724842832,3.0,3422.7,3421.5,0.05706378]
[1718724843359,3.0,3422.7,3421.4,1.09490388]
[1718724843949,3.0,3422.7,3421.5,7.2701]
[1718724844134,3.0,3422.7,3421.8,2.92241]
[1718724844359,3.0,3422.7,3421.9,0.01474914]
[1718724844523,3.0,3422.7,3422.0,0.29371591]
[1718724844724,3.0,3422.7,3422.1,0.05843465]
[1718724844929,3.0,3422.7,3422.0,0.29371591]
[1718724845160,3.0,3422.7,3421.5,7.2701]
[1718724845327,3.0,3422.7,3421.5,10.19271]
[1718724845529,3.0,3422.7,3421.5,7.2701]
[1718724846730,3.0,3422.7,3421.7,2.92251]
[1718724846927,7.43,3423.1,3422.0,2.92226]
[1718724847167,7.43,3423.1,3421.8,7.0736]
[1718724847168,7.43,3423.1,3422.2,2.92209]
[1718724847366,7.43,3423.1,3422.3,10.05402491]
[1718724847539,8.93054575,3423.9,3422.4,1.29761149]
[1718724847742,7.43,3423.9,3423.0,2.92139]
[1718724848055,7.43,3423.9,3423.1,0.05840861]
[1718724848539,7.43,3423.9,3422.7,2.788]
[1718724848540,7.43,3423.9,3422.7,5.70965]
[1718724848740,7.43,3423.9,3422.8,1.447992]
[1718724848939,7.43,3423.9,3422.6,7.3086]
[1718724849344,2.12455434,3423.8,3421.9,7.1662]
[1718724849543,3.94074388,3423.8,3422.0,2.92225]
[1718724849744,7.43,3423.2,3421.9,7.1662]
[1718724850064,8.9407005,3423.2,3421.9,7.1662]
[1718724850268,1.5107005,3423.1,3421.9,7.1662]
[1718724850467,7.43,3423.2,3421.9,7.1362]
[1718724850635,8.9407005,3423.2,3421.9,7.1362]
[1718724851350,1.5107005,3423.1,3421.9,7.1362]
[1718724852243,7.43,3423.2,3421.9,7.1362]
[1718724852244,3.63582719,3423.0,3421.9,7.1362]
[1718724852469,1.5107005,3423.0,3421.9,7.1362]
[1718724852663,1.5107005,3422.9,3421.9,7.1362]
[1718724853340,1.5107005,3422.9,3421.3,2.788]
[1718724853540,3.0482,3423.1,3421.4,7.4927]
[1718724853541,3.0,3422.6,3421.4,7.4927]
[1718724853782,4.5107005,3422.6,3421.4,7.4927]
[1718724854076,1.5107005,3422.3,3420.9,7.4927]
[1718724854276,1.5107005,3422.4,3420.9,7.4927]
[1718724854483,3.0,3422.2,3420.9,7.4927]
[1718724854690,1.5107005,3422.0,3420.9,7.4927]
[1718724855183,3.63645259,3421.9,3420.9,7.4927]
[1718724855365,0.36364526,3421.8,3420.9,7.4927]
[1718724855676,1.5107005,3422.0,3420.9,7.4927]
[1718724855982,3.0,3422.2,3420.9,7.4927]
[1718724855983,1.5107005,3422.1,3420.9,7.4927]
[1718724856170,1.5107005,3422.0,3420.9,7.4927]
[1718724856483,3.63639097,3421.9,3420.9,7.4927]
[1718724856679,1.5107005,3421.9,3420.9,7.4927]
[1718724857643,0.3,3422.1,3420.3,6.9119]
[1718724857644,1.5107005,3421.7,3420.3,6.9119]
[1718724857863,1.5107005,3421.6,3420.3,6.9119]
[1718724858072,5.16318071,3422.2,3420.7,6.9119]
[1718724858073,1.5107005,3422.2,3420.7,6.9119]
[1718724858272,1.5107005,3422.3,3421.3,2.92284]
[1718724858571,3.0482,3423.2,3421.5,6.9119]
[1718724858572,1.5107005,3422.5,3421.5,6.9119]
[1718724859195,1.5107005,3422.4,3421.5,6.9119]
[1718724859388,2.12529747,3422.3,3421.6,0.01783608]
[1718724859581,0.3635998,3422.3,3421.6,0.01783608]
[1718724859774,1.5107005,3422.4,3421.6,0.01783608]
[1718724859977,1.5107005,3422.5,3421.6,0.01783608]
[1718724860498,3.63594262,3422.4,3421.6,0.01783608]
[1718724860670,1.5107005,3422.4,3421.6,0.01783608]
[1718724860996,4.81284061,3422.7,3421.6,1.00308669]
[1718724860997,1.5107005,3422.5,3421.6,1.00308669]
[1718724861184,2.12524432,3422.4,3421.7,0.0458151]
[1718724861366,3.63594482,3422.4,3421.7,0.0458151]
[1718724861570,5.11498071,3423.0,3421.8,0.05843979]
[1718724861571,1.5107005,3422.6,3421.8,0.05843979]
[1718724861787,1.81284061,3422.9,3421.5,6.9119]
[1718724861788,3.63589702,3422.5,3421.5,6.9119]
[1718724862071,3.63589702,3422.4,3421.5,6.9119]
[1718724862388,1.5107005,3422.4,3421.5,6.9119]
[1718724863384,3.63595781,3422.3,3420.9,7.0246]
[1718724863586,1.5107005,3422.2,3421.0,3.0]
[1718724863804,1.5107005,3422.1,3421.1,1.28126]
[1718724864510,1.5107005,3422.1,3420.9,7.0246]
[1718724864809,1.81284061,3422.4,3420.9,7.0246]
[1718724864810,1.5107005,3421.9,3420.9,7.0246]
[1718724865213,1.5107005,3422.0,3420.9,7.0246]
[1718724865420,3.63622669,3421.9,3420.9,7.0246]
[1718724865627,1.5107005,3422.0,3421.0,1.287125]
[1718724866319,2.12551073,3421.9,3421.0,1.287125]
[1718724866492,1.5107005,3422.0,3421.0,1.287125]
[1718724866693,1.5107005,3421.9,3421.1,1.1234925]
[1718724867103,2.11498071,3422.6,3421.3,2.92283]
[1718724867104,1.5107005,3422.1,3421.3,2.92283]
[1718724867308,1.5107005,3422.1,3421.1,4.0465025]
[1718724867508,1.5107005,3422.1,3421.2,1.10711325]
[1718724867718,3.0,3422.3,3420.9,7.0246]
[1718724867719,3.63615081,3422.0,3421.3,0.02235152]
[1718724867951,1.5107005,3422.0,3420.9,9.94776]
[1718724868222,2.12548568,3421.9,3420.9,8.590511]
[1718724868423,3.63618618,3421.9,3421.0,0.02235348]
[1718724868624,1.5107005,3421.9,3421.0,0.02235348]
[1718724868811,1.5107005,3421.9,3421.1,1.43240745]
[1718724869022,1.5107005,3421.9,3420.9,7.0246]
[1718724869828,1.5107005,3421.9,3421.0,0.02534632]
[1718724870007,1.5107005,3421.9,3420.9,7.0246]
[1718724870412,1.5107005,3421.8,3420.9,7.0246]
[1718724870613,1.5107005,3421.8,3420.9,8.2982]
[1718724870997,1.5107005,3421.9,3420.9,7.0246]
[1718724871202,2.12555993,3421.8,3420.4,6.923]
[1718724871412,1.5107005,3421.4,3420.4,6.923]
[1718724871608,3.6365818,3421.3,3420.4,6.923]
[1718724871927,3.6365818,3421.3,3419.9,2.92406]
[1718724871928,3.63660414,3421.2,3419.9,6.923]
[1718724872106,3.63660414,3421.1,3419.9,7.6153]
[1718724872300,2.12590364,3421.0,3419.9,7.6153]
[1718724872505,3.0,3421.3,3419.9,7.6153]
[1718724872506,3.63776961,3420.9,3419.9,7.6153]
[1718724872725,1.81423916,3421.2,3420.0,0.76153]
[1718724872726,1.51186597,3421.0,3420.0,0.76153]
[1718724872922,1.51186597,3421.0,3420.1,0.05829684]
[1718724873499,1.51186597,3421.0,3419.9,6.923]
[1718724873500,0.1811866,3420.9,3419.9,6.923]
[1718724873835,0.1811866,3420.9,3420.0,0.05846737]
[1718724874133,1.69305257,3420.9,3420.0,0.05846737]
[1718724874340,1.51186597,3420.9,3420.0,0.05846737]
[1718724874639,4.81423916,3421.3,3420.0,0.05846737]
[1718724874640,1.51186597,3421.1,3420.0,0.05846737]
[1718724876619,3.0,3421.3,3419.9,6.923]
[1718724876620,1.51186597,3420.9,3419.9,6.923]
[1718724876805,3.63813186,3420.8,3419.9,6.923]
[1718724877006,1.51186597,3420.6,3419.9,6.923]
[1718724877212,1.51186597,3420.4,3419.0,7.3819]
[1718724877538,1.51186597,3420.4,3419.1,2.9247]
[1718724877721,1.51186597,3420.4,3419.1,2.92474]
[1718724877934,1.51186597,3420.6,3419.5,2.92439]
[1718724878149,3.0,3420.7,3419.6,8.084795]
[1718724878150,1.51186597,3420.7,3419.6,8.084795]
[1718724878454,3.0,3420.8,3419.6,8.084795]
[1718724878455,4.51186597,3420.8,3419.6,8.084795]
[1718724878658,1.51186597,3420.6,3419.6,8.084795]
[1718724878861,3.0,3420.6,3419.6,8.084795]
[1718724879228,4.51186597,3420.7,3419.6,8.084795]
[1718724879423,1.51186597,3420.7,3419.6,8.084795]
[1718724879623,4.51186597,3420.8,3419.8,2.097]
[1718724879858,3.0,3421.3,3419.8,2.097]
[1718724879859,1.51186597,3421.0,3419.8,2.097]
[1718724880528,10.43,3421.2,3419.7,1.0181795]
[1718724880529,1.51186597,3421.1,3419.7,1.0181795]
[1718724880752,10.43,3421.2,3419.7,2.097]
[1718724880753,1.51186597,3420.9,3419.7,2.097]
[1718724882028,1.51186597,3420.8,3419.6,7.4999]
[1718724882233,0.1511866,3420.7,3419.6,7.4999]
[1718724883848,1.65998688,3420.7,3419.6,7.4999]
[1718724884035,3.63540265,3420.6,3419.6,7.4999]
[1718724884240,1.50880028,3420.5,3419.1,7.0736]
[1718724884536,4.50880028,3420.5,3419.1,7.0736]
[1718724884738,4.50880028,3419.9,3418.7,7.0736]
[1718724884958,2.12680661,3419.8,3418.7,7.0736]